[Event "Titled Tuesday Blitz November 07 Early 2023"]
[White "Slovineanu, Viacheslav"]
[Black "kingapolak"]
[WhiteFideId "13900510"]
[WhiteElo "2386"]
[BlackElo "2168"]
[Result "1-0"]
[Round "3"]
[TimeControl "180+1"]
[Date "2023.11.07"]
[WhiteClock "0:00:11"]
[BlackClock "0:00:00"]
[Board "224"]

1. d4 {[%clk 0:02:59]}  Nf6 {[%clk 0:02:58]} 2. Nf3 {[%clk 0:02:59]}  g6 {[%clk 0:02:58]} 3. Nbd2 {[%clk 0:02:59]}  Bg7 {[%clk 0:02:51]} 4. e4 {[%clk 0:02:59]}  d6 {[%clk 0:02:51]} 5. Bd3 {[%clk 0:02:59]}  O-O {[%clk 0:02:37]} 6. O-O {[%clk 0:02:58]}  e5 {[%clk 0:02:30]} 7. dxe5 {[%clk 0:02:57]}  dxe5 {[%clk 0:02:30]} 8. a4 {[%clk 0:02:49]}  Nc6 {[%clk 0:02:17]} 9. Re1 {[%clk 0:02:46]}  Nh5 {[%clk 0:02:07]} 10. g3 {[%clk 0:02:45]}  Bg4 {[%clk 0:02:04]} 11. Qe2 {[%clk 0:02:38]}  Nd4 {[%clk 0:02:03]} 12. Qe3 {[%clk 0:02:38]}  Qd7 {[%clk 0:01:20]} 13. c3 {[%clk 0:02:24]}  Nxf3+ {[%clk 0:01:07]} 14. Nxf3 {[%clk 0:02:23]}  Rad8 {[%clk 0:01:07]} 15. Bc4 {[%clk 0:02:14]}  Nf6 {[%clk 0:00:48]} 16. Nxe5 {[%clk 0:02:01]}  Qd6 {[%clk 0:00:43]} 17. Nxg4 {[%clk 0:01:57]}  Nxg4 {[%clk 0:00:44]} 18. Qf4 {[%clk 0:01:55]}  Ne5 {[%clk 0:00:40]} 19. Be2 {[%clk 0:01:47]}  Rfe8 {[%clk 0:00:31]} 20. Be3 {[%clk 0:01:41]}  Qe6 {[%clk 0:00:21]} 21. Bd4 {[%clk 0:01:02]}  b6 {[%clk 0:00:19]} 22. a5 {[%clk 0:00:55]}  c5 {[%clk 0:00:19]} 23. Be3 {[%clk 0:00:55]}  h6 {[%clk 0:00:15]} 24. axb6 {[%clk 0:00:53]}  axb6 {[%clk 0:00:15]} 25. Ra6 {[%clk 0:00:43]}  Rc8 {[%clk 0:00:14]} 26. Rd1 {[%clk 0:00:39]}  Qb3 {[%clk 0:00:14]} 27. Rd2 {[%clk 0:00:35]}  Nc4 {[%clk 0:00:11]} 28. Bxc4 {[%clk 0:00:33]}  Qxc4 {[%clk 0:00:12]} 29. Ra7 {[%clk 0:00:31]}  Rxe4 {[%clk 0:00:10]} 30. Qf3 {[%clk 0:00:25]}  Ree8 {[%clk 0:00:10]} 31. Rdd7 {[%clk 0:00:24]}  Rf8 {[%clk 0:00:10]} 32. Bf4 {[%clk 0:00:23]}  Rcd8 {[%clk 0:00:07]} 33. Qc6 {[%clk 0:00:12]}  Rxd7 {[%clk 0:00:07]} 34. Qxd7 {[%clk 0:00:12]}  Qb3 {[%clk 0:00:00]} 35. h4 {[%clk 0:00:11]} 1-0


[Site "https://www.chess.com"]

[Event "Titled Tuesday Blitz November 07 Early 2023"]
[White "Silvestre, Christian"]
[Black "Becerra, Juan David"]
[WhiteFideId "30956269"]
[BlackFideId "4404998"]
[WhiteElo "2151"]
[BlackElo "2383"]
[Result "1-0"]
[Round "3"]
[TimeControl "180+1"]
[Date "2023.11.07"]
[WhiteClock "0:00:21"]
[BlackClock "0:00:00"]
[Board "226"]

1. e4 {[%clk 0:03:00]}  e6 {[%clk 0:02:57]} 2. Qe2 {[%clk 0:02:57]}  c5 {[%clk 0:02:55]} 3. g3 {[%clk 0:02:56]}  Ne7 {[%clk 0:02:55]} 4. Bg2 {[%clk 0:02:56]}  d5 {[%clk 0:02:56]} 5. d3 {[%clk 0:02:57]}  Nbc6 {[%clk 0:02:55]} 6. Nf3 {[%clk 0:02:56]}  dxe4 {[%clk 0:02:53]} 7. dxe4 {[%clk 0:02:55]}  e5 {[%clk 0:02:47]} 8. O-O {[%clk 0:02:46]}  Be6 {[%clk 0:02:30]} 9. Rd1 {[%clk 0:02:42]}  Qc7 {[%clk 0:02:30]} 10. c3 {[%clk 0:02:36]}  f6 {[%clk 0:02:19]} 11. Nbd2 {[%clk 0:02:28]}  Nc8 {[%clk 0:02:15]} 12. Nc4 {[%clk 0:02:26]}  Be7 {[%clk 0:02:05]} 13. Ne3 {[%clk 0:02:25]}  Nb6 {[%clk 0:02:01]} 14. Nh4 {[%clk 0:02:09]}  O-O {[%clk 0:01:53]} 15. Nd5 {[%clk 0:01:48]}  Bxd5 {[%clk 0:01:28]} 16. exd5 {[%clk 0:01:49]}  Na5 {[%clk 0:01:07]} 17. Nf5 {[%clk 0:01:38]}  Rfd8 {[%clk 0:01:02]} 18. Bh6 {[%clk 0:01:07]}  Bf8 {[%clk 0:01:01]} 19. Qg4 {[%clk 0:00:49]}  Kh8 {[%clk 0:01:02]} 20. d6 {[%clk 0:00:40]}  Qd7 {[%clk 0:00:58]} 21. Be3 {[%clk 0:00:34]}  g6 {[%clk 0:00:42]} 22. Nh6 {[%clk 0:00:31]}  Bxh6 {[%clk 0:00:39]} 23. Qxd7 {[%clk 0:00:28]}  Rxd7 {[%clk 0:00:38]} 24. Bxh6 {[%clk 0:00:29]}  Rad8 {[%clk 0:00:36]} 25. Be3 {[%clk 0:00:29]}  Rxd6 {[%clk 0:00:24]} 26. Rxd6 {[%clk 0:00:30]}  Rxd6 {[%clk 0:00:24]} 27. Bxc5 {[%clk 0:00:31]}  Rd2 {[%clk 0:00:24]} 28. b4 {[%clk 0:00:30]}  Nc6 {[%clk 0:00:18]} 29. a4 {[%clk 0:00:26]}  Nd7 {[%clk 0:00:18]} 30. Bxc6 {[%clk 0:00:22]}  bxc6 {[%clk 0:00:19]} 31. Bxa7 {[%clk 0:00:22]}  Rc2 {[%clk 0:00:17]} 32. a5 {[%clk 0:00:21]}  Rxc3 {[%clk 0:00:17]} 33. a6 {[%clk 0:00:22]}  c5 {[%clk 0:00:15]} 34. Bxc5 {[%clk 0:00:22]}  Nxc5 {[%clk 0:00:00]} 35. a7 {[%clk 0:00:21]} 1-0


[Site "https://www.chess.com"]

[Event "Titled Tuesday Blitz November 07 Early 2023"]
[White "Spichkin, Alexander"]
[Black "Estevez Polanco, Leonardo Rafael"]
[WhiteFideId "4144074"]
[BlackFideId "6402798"]
[WhiteElo "2368"]
[BlackElo "2143"]
[Result "0-1"]
[Round "3"]
[TimeControl "180+1"]
[Date "2023.11.07"]
[WhiteClock "0:01:56"]
[BlackClock "0:01:57"]
[Board "229"]

1. f4 {[%clk 0:03:00]}  e5 {[%clk 0:02:53]} 2. e4 {[%clk 0:02:58]}  d5 {[%clk 0:02:51]} 3. exd5 {[%clk 0:02:56]}  e4 {[%clk 0:02:50]} 4. Nc3 {[%clk 0:02:51]}  Nf6 {[%clk 0:02:47]} 5. d3 {[%clk 0:02:50]}  Bb4 {[%clk 0:02:43]} 6. Bd2 {[%clk 0:02:48]}  e3 {[%clk 0:02:42]} 7. Qe2 {[%clk 0:02:45]}  O-O {[%clk 0:02:33]} 8. Bxe3 {[%clk 0:02:45]}  Nxd5 {[%clk 0:02:32]} 9. Kf2 {[%clk 0:02:34]}  Bxc3 {[%clk 0:02:23]} 10. bxc3 {[%clk 0:02:22]}  Re8 {[%clk 0:02:20]} 11. c4 {[%clk 0:02:17]}  Nxe3 {[%clk 0:02:18]} 12. Qd1 {[%clk 0:02:07]}  Nxd1+ {[%clk 0:02:17]} 13. Rxd1 {[%clk 0:02:06]}  Nc6 {[%clk 0:02:15]} 14. Nf3 {[%clk 0:02:06]}  Bg4 {[%clk 0:02:13]} 15. d4 {[%clk 0:01:58]}  Bxf3 {[%clk 0:02:11]} 16. gxf3 {[%clk 0:01:55]}  Nxd4 {[%clk 0:02:09]} 17. c3 {[%clk 0:01:55]}  Qh4+ {[%clk 0:01:57]} 18. Kg2 {[%clk 0:01:56]} 0-1


[Site "https://www.chess.com"]

[Event "Titled Tuesday Blitz November 07 Early 2023"]
[White "Fernandez Hernandez, Gerardo"]
[Black "Mejia, Cherry Ann"]
[WhiteFideId "2207400"]
[BlackFideId "5206880"]
[WhiteElo "2130"]
[BlackElo "2367"]
[Result "0-1"]
[Round "3"]
[TimeControl "180+1"]
[Date "2023.11.07"]
[WhiteClock "0:00:00"]
[BlackClock "0:00:11"]
[Board "230"]

1. e4 {[%clk 0:03:00]}  c5 {[%clk 0:02:59]} 2. d3 {[%clk 0:03:00]}  d5 {[%clk 0:02:59]} 3. Nd2 {[%clk 0:03:00]}  Nc6 {[%clk 0:02:57]} 4. g3 {[%clk 0:03:00]}  Nf6 {[%clk 0:02:57]} 5. Bg2 {[%clk 0:03:00]}  e5 {[%clk 0:02:58]} 6. Ngf3 {[%clk 0:02:58]}  Be7 {[%clk 0:02:58]} 7. O-O {[%clk 0:02:58]}  O-O {[%clk 0:02:54]} 8. exd5 {[%clk 0:02:58]}  Nxd5 {[%clk 0:02:53]} 9. Nc4 {[%clk 0:02:58]}  f6 {[%clk 0:02:48]} 10. c3 {[%clk 0:02:55]}  b5 {[%clk 0:02:37]} 11. Ne3 {[%clk 0:02:46]}  Nxe3 {[%clk 0:02:34]} 12. Bxe3 {[%clk 0:02:47]}  Bb7 {[%clk 0:02:34]} 13. Qb3+ {[%clk 0:02:42]}  Kh8 {[%clk 0:02:29]} 14. Qxb5 {[%clk 0:02:42]}  Rb8 {[%clk 0:02:27]} 15. Bxc5 {[%clk 0:02:30]}  Ba8 {[%clk 0:01:49]} 16. Bxe7 {[%clk 0:02:22]}  Qxe7 {[%clk 0:01:47]} 17. Qa4 {[%clk 0:02:08]}  Rxb2 {[%clk 0:01:44]} 18. Nh4 {[%clk 0:02:01]}  Qc5 {[%clk 0:01:29]} 19. Rab1 {[%clk 0:01:26]}  Rfb8 {[%clk 0:01:26]} 20. Rxb2 {[%clk 0:01:26]}  Rxb2 {[%clk 0:01:25]} 21. d4 {[%clk 0:01:25]}  exd4 {[%clk 0:01:13]} 22. cxd4 {[%clk 0:01:25]}  Qb5 {[%clk 0:00:49]} 23. Qa3 {[%clk 0:00:58]}  Qb4 {[%clk 0:00:44]} 24. Qa6 {[%clk 0:00:51]}  Bb7 {[%clk 0:00:41]} 25. Qd3 {[%clk 0:00:29]}  Qxd4 {[%clk 0:00:40]} 26. Qf5 {[%clk 0:00:22]}  g6 {[%clk 0:00:40]} 27. Nxg6+ {[%clk 0:00:11]}  hxg6 {[%clk 0:00:40]} 28. Qxg6 {[%clk 0:00:12]}  Ne7 {[%clk 0:00:33]} 29. Qe8+ {[%clk 0:00:06]}  Ng8 {[%clk 0:00:33]} 30. Qh5+ {[%clk 0:00:07]}  Kg7 {[%clk 0:00:31]} 31. Qe8 {[%clk 0:00:06]}  Bxg2 {[%clk 0:00:30]} 32. Kxg2 {[%clk 0:00:07]}  Qd5+ {[%clk 0:00:29]} 33. Kg1 {[%clk 0:00:07]}  Rxa2 {[%clk 0:00:29]} 34. Qb8 {[%clk 0:00:06]}  Qf7 {[%clk 0:00:26]} 35. h4 {[%clk 0:00:05]}  Ne7 {[%clk 0:00:24]} 36. Rc1 {[%clk 0:00:04]}  a5 {[%clk 0:00:21]} 37. Rc7 {[%clk 0:00:03]}  Re2 {[%clk 0:00:21]} 38. Qa7 {[%clk 0:00:03]}  Re1+ {[%clk 0:00:14]} 39. Kh2 {[%clk 0:00:00]}  Qe6 {[%clk 0:00:11]} 0-1


[Site "https://www.chess.com"]

[Event "Titled Tuesday Blitz November 07 Early 2023"]
[White "DonCiao"]
[Black "Corredor Castellanos, Camilo"]
[BlackFideId "4425871"]
[WhiteElo "2129"]
[BlackElo "2365"]
[Result "0-1"]
[Round "3"]
[TimeControl "180+1"]
[Date "2023.11.07"]
[WhiteClock "0:00:00"]
[BlackClock "0:00:54"]
[Board "231"]

1. c4 {[%clk 0:03:00]}  e5 {[%clk 0:02:59]} 2. g3 {[%clk 0:03:00]}  Nf6 {[%clk 0:02:59]} 3. Bg2 {[%clk 0:03:00]}  d5 {[%clk 0:02:59]} 4. cxd5 {[%clk 0:03:00]}  Nxd5 {[%clk 0:03:00]} 5. Nc3 {[%clk 0:03:00]}  Nb6 {[%clk 0:02:59]} 6. Nf3 {[%clk 0:03:00]}  Nc6 {[%clk 0:03:00]} 7. O-O {[%clk 0:03:00]}  Be7 {[%clk 0:03:00]} 8. d3 {[%clk 0:03:00]}  O-O {[%clk 0:03:01]} 9. a3 {[%clk 0:03:00]}  Re8 {[%clk 0:03:01]} 10. b4 {[%clk 0:03:00]}  Nd4 {[%clk 0:02:54]} 11. Nxe5 {[%clk 0:02:47]}  Bf6 {[%clk 0:02:54]} 12. f4 {[%clk 0:02:24]}  Bxe5 {[%clk 0:02:31]} 13. fxe5 {[%clk 0:02:24]}  Rxe5 {[%clk 0:02:32]} 14. Bf4 {[%clk 0:02:15]}  Re8 {[%clk 0:02:26]} 15. e3 {[%clk 0:01:59]}  Ne6 {[%clk 0:02:26]} 16. Rc1 {[%clk 0:01:50]}  c6 {[%clk 0:02:24]} 17. e4 {[%clk 0:01:44]}  Qd4+ {[%clk 0:02:20]} 18. Kh1 {[%clk 0:01:44]}  Nxf4 {[%clk 0:02:20]} 19. Rxf4 {[%clk 0:01:40]}  Be6 {[%clk 0:02:20]} 20. Qf3 {[%clk 0:01:33]}  Rad8 {[%clk 0:02:19]} 21. Bf1 {[%clk 0:01:32]}  g5 {[%clk 0:02:09]} 22. Rf6 {[%clk 0:01:25]}  Kg7 {[%clk 0:02:08]} 23. Rxe6 {[%clk 0:01:00]}  Rxe6 {[%clk 0:02:07]} 24. Qg4 {[%clk 0:00:53]}  Re5 {[%clk 0:01:53]} 25. h4 {[%clk 0:00:38]}  h5 {[%clk 0:01:52]} 26. Qxh5 {[%clk 0:00:34]}  Rh8 {[%clk 0:01:52]} 27. Qg4 {[%clk 0:00:33]}  Nd7 {[%clk 0:01:45]} 28. Kg2 {[%clk 0:00:28]}  Nf6 {[%clk 0:01:45]} 29. Ne2 {[%clk 0:00:24]}  Nxg4 {[%clk 0:01:34]} 30. Nxd4 {[%clk 0:00:23]}  gxh4 {[%clk 0:01:35]} 31. Be2 {[%clk 0:00:21]}  h3+ {[%clk 0:01:33]} 32. Kf3 {[%clk 0:00:14]}  h2 {[%clk 0:01:30]} 33. Rh1 {[%clk 0:00:14]}  Rg5 {[%clk 0:01:26]} 34. Nf5+ {[%clk 0:00:13]}  Kf6 {[%clk 0:01:25]} 35. d4 {[%clk 0:00:12]}  Rd8 {[%clk 0:01:13]} 36. Bd3 {[%clk 0:00:11]}  a5 {[%clk 0:00:58]} 37. bxa5 {[%clk 0:00:10]}  Ra8 {[%clk 0:00:58]} 38. a6 {[%clk 0:00:10]}  bxa6 {[%clk 0:00:58]} 39. e5+ {[%clk 0:00:09]}  Ke6 {[%clk 0:00:55]} 40. Bc4+ {[%clk 0:00:00]}  Kd7 {[%clk 0:00:54]} 0-1


[Site "https://www.chess.com"]

[Event "Titled Tuesday Blitz November 07 Early 2023"]
[White "Osiecki, Stanislaw"]
[Black "rikchessmx"]
[WhiteFideId "1102990"]
[WhiteElo "2103"]
[BlackElo "2356"]
[Result "1-0"]
[Round "3"]
[TimeControl "180+1"]
[Date "2023.11.07"]
[WhiteClock "0:01:03"]
[BlackClock "0:02:13"]
[Board "234"]

1. e4 {[%clk 0:02:51]}  c5 {[%clk 0:02:58]} 2. c3 {[%clk 0:02:43]}  e6 {[%clk 0:02:59]} 3. d4 {[%clk 0:02:43]}  d5 {[%clk 0:02:59]} 4. e5 {[%clk 0:02:41]}  Nc6 {[%clk 0:02:59]} 5. Nf3 {[%clk 0:02:41]}  a6 {[%clk 0:02:59]} 6. Bd3 {[%clk 0:02:41]}  Qb6 {[%clk 0:02:58]} 7. dxc5 {[%clk 0:02:39]}  Bxc5 {[%clk 0:02:58]} 8. O-O {[%clk 0:02:39]}  Qc7 {[%clk 0:02:58]} 9. Bf4 {[%clk 0:02:38]}  f6 {[%clk 0:02:56]} 10. exf6 {[%clk 0:02:34]}  e5 {[%clk 0:02:52]} 11. Nxe5 {[%clk 0:02:27]}  Nxe5 {[%clk 0:02:51]} 12. Bxe5 {[%clk 0:02:27]}  Bd6 {[%clk 0:02:42]} 13. Bxd6 {[%clk 0:02:17]}  Qf7 {[%clk 0:02:34]} 14. Re1+ {[%clk 0:02:04]}  Kd8 {[%clk 0:02:34]} 15. fxg7 {[%clk 0:01:55]}  Qxg7 {[%clk 0:02:34]} 16. Be5 {[%clk 0:01:51]}  Nf6 {[%clk 0:02:33]} 17. Qf3 {[%clk 0:01:46]}  Rf8 {[%clk 0:02:32]} 18. Nd2 {[%clk 0:01:39]}  Bg4 {[%clk 0:02:31]} 19. Bxf6+ {[%clk 0:01:30]}  Qxf6 {[%clk 0:02:30]} 20. Qxg4 {[%clk 0:01:23]}  Qxf2+ {[%clk 0:02:29]} 21. Kh1 {[%clk 0:01:24]}  Qxd2 {[%clk 0:02:29]} 22. Rad1 {[%clk 0:01:20]}  Qxb2 {[%clk 0:02:21]} 23. Bf1 {[%clk 0:01:11]}  Kc7 {[%clk 0:02:19]} 24. Qg3+ {[%clk 0:01:04]}  Kb6 {[%clk 0:02:13]} 25. Rb1 {[%clk 0:01:03]} 1-0


[Site "https://www.chess.com"]

[Event "Titled Tuesday Blitz November 07 Early 2023"]
[White "secrethawk1"]
[Black "Yushko, Olga"]
[BlackFideId "14114500"]
[WhiteElo "2348"]
[BlackElo "2081"]
[Result "1-0"]
[Round "3"]
[TimeControl "180+1"]
[Date "2023.11.07"]
[WhiteClock "0:00:28"]
[BlackClock "0:00:01"]
[Board "236"]

1. d4 {[%clk 0:02:37]}  e6 {[%clk 0:03:00]} 2. e4 {[%clk 0:02:32]}  d5 {[%clk 0:02:59]} 3. Nc3 {[%clk 0:02:33]}  Nf6 {[%clk 0:02:59]} 4. Bg5 {[%clk 0:02:32]}  dxe4 {[%clk 0:02:57]} 5. Nxe4 {[%clk 0:02:32]}  Be7 {[%clk 0:02:58]} 6. Bxf6 {[%clk 0:02:30]}  Bxf6 {[%clk 0:02:59]} 7. Nf3 {[%clk 0:02:31]}  O-O {[%clk 0:02:59]} 8. Bd3 {[%clk 0:02:31]}  g6 {[%clk 0:02:58]} 9. c3 {[%clk 0:02:29]}  Bg7 {[%clk 0:02:59]} 10. O-O {[%clk 0:02:29]}  Nd7 {[%clk 0:02:58]} 11. Re1 {[%clk 0:02:28]}  Nf6 {[%clk 0:02:55]} 12. b4 {[%clk 0:02:28]}  b6 {[%clk 0:02:54]} 13. Nxf6+ {[%clk 0:02:25]}  Qxf6 {[%clk 0:02:52]} 14. Be4 {[%clk 0:02:26]}  Rb8 {[%clk 0:02:52]} 15. Ne5 {[%clk 0:02:26]}  Qh4 {[%clk 0:02:39]} 16. g3 {[%clk 0:02:08]}  Qg5 {[%clk 0:02:14]} 17. Nc6 {[%clk 0:01:58]}  Rb7 {[%clk 0:02:09]} 18. h4 {[%clk 0:01:56]}  Qf6 {[%clk 0:02:04]} 19. Re3 {[%clk 0:01:54]}  e5 {[%clk 0:01:23]} 20. dxe5 {[%clk 0:01:46]}  Qe6 {[%clk 0:01:22]} 21. Nd8 {[%clk 0:01:45]}  Rxd8 {[%clk 0:00:50]} 22. Qxd8+ {[%clk 0:01:43]}  Bf8 {[%clk 0:00:50]} 23. Bd5 {[%clk 0:01:18]}  Qh3 {[%clk 0:00:44]} 24. Rf3 {[%clk 0:01:04]}  c6 {[%clk 0:00:41]} 25. Bxc6 {[%clk 0:00:47]}  Re7 {[%clk 0:00:38]} 26. Bd5 {[%clk 0:00:35]}  Bg4 {[%clk 0:00:38]} 27. Rxf7 {[%clk 0:00:29]}  Rxf7 {[%clk 0:00:01]} 28. Qe8 {[%clk 0:00:28]} 1-0


[Site "https://www.chess.com"]

[Event "Titled Tuesday Blitz November 07 Early 2023"]
[White "Freeeeeeeeeeeeeeeeee"]
[Black "Soumya, Swaminathan"]
[BlackFideId "5016193"]
[WhiteElo "2021"]
[BlackElo "2340"]
[Result "0-1"]
[Round "3"]
[TimeControl "180+1"]
[Date "2023.11.07"]
[WhiteClock "0:00:05"]
[BlackClock "0:00:10"]
[Board "241"]

1. e4 {[%clk 0:02:57]}  c5 {[%clk 0:02:58]} 2. Nf3 {[%clk 0:02:57]}  Nc6 {[%clk 0:02:58]} 3. Bb5 {[%clk 0:02:57]}  g6 {[%clk 0:02:57]} 4. h3 {[%clk 0:02:56]}  Bg7 {[%clk 0:02:54]} 5. Bxc6 {[%clk 0:02:55]}  dxc6 {[%clk 0:02:54]} 6. O-O {[%clk 0:02:56]}  Nf6 {[%clk 0:02:52]} 7. d3 {[%clk 0:02:55]}  Nd7 {[%clk 0:02:50]} 8. Nc3 {[%clk 0:02:50]}  e5 {[%clk 0:02:43]} 9. Be3 {[%clk 0:02:50]}  b6 {[%clk 0:02:39]} 10. a3 {[%clk 0:02:45]}  a5 {[%clk 0:02:11]} 11. Rb1 {[%clk 0:02:01]}  a4 {[%clk 0:01:59]} 12. Qc1 {[%clk 0:01:46]}  h6 {[%clk 0:01:58]} 13. Ne2 {[%clk 0:01:40]}  Nf8 {[%clk 0:01:54]} 14. Rd1 {[%clk 0:01:36]}  Ne6 {[%clk 0:01:53]} 15. c3 {[%clk 0:01:35]}  Ba6 {[%clk 0:01:40]} 16. Qc2 {[%clk 0:01:25]}  O-O {[%clk 0:01:23]} 17. Nc1 {[%clk 0:00:26]}  Qe7 {[%clk 0:01:06]} 18. d4 {[%clk 0:00:20]}  exd4 {[%clk 0:01:02]} 19. cxd4 {[%clk 0:00:20]}  cxd4 {[%clk 0:01:02]} 20. Nxd4 {[%clk 0:00:20]}  c5 {[%clk 0:00:52]} 21. Nxe6 {[%clk 0:00:19]}  Qxe6 {[%clk 0:00:53]} 22. b4 {[%clk 0:00:08]}  axb3 {[%clk 0:00:48]} 23. Rxb3 {[%clk 0:00:09]}  Bb7 {[%clk 0:00:41]} 24. Qb1 {[%clk 0:00:08]}  Bxe4 {[%clk 0:00:37]} 25. Nd3 {[%clk 0:00:08]}  Ra6 {[%clk 0:00:28]} 26. f3 {[%clk 0:00:07]}  Bd5 {[%clk 0:00:28]} 27. Nf4 {[%clk 0:00:06]}  Bxb3 {[%clk 0:00:25]} 28. Nxe6 {[%clk 0:00:06]}  Bxe6 {[%clk 0:00:26]} 29. Bf2 {[%clk 0:00:06]}  Rc8 {[%clk 0:00:18]} 30. Rd6 {[%clk 0:00:07]}  c4 {[%clk 0:00:16]} 31. Rxb6 {[%clk 0:00:07]}  Rxa3 {[%clk 0:00:16]} 32. Rb8 {[%clk 0:00:06]}  Rxb8 {[%clk 0:00:15]} 33. Qxb8+ {[%clk 0:00:07]}  Kh7 {[%clk 0:00:15]} 34. Be3 {[%clk 0:00:08]}  Rxe3 {[%clk 0:00:14]} 35. Qb1 {[%clk 0:00:08]}  Bd4 {[%clk 0:00:14]} 36. Kh2 {[%clk 0:00:08]}  c3 {[%clk 0:00:14]} 37. Qc1 {[%clk 0:00:08]}  Bf5 {[%clk 0:00:12]} 38. g4 {[%clk 0:00:09]}  Bd3 {[%clk 0:00:12]} 39. Kg3 {[%clk 0:00:09]}  Be5+ {[%clk 0:00:12]} 40. Kf2 {[%clk 0:00:08]}  Re2+ {[%clk 0:00:12]} 41. Kg1 {[%clk 0:00:08]}  Bd4+ {[%clk 0:00:12]} 42. Kh1 {[%clk 0:00:07]}  c2 {[%clk 0:00:11]} 43. g5 {[%clk 0:00:07]}  Be3 {[%clk 0:00:10]} 44. Qxe3 {[%clk 0:00:05]}  Rxe3 {[%clk 0:00:10]} 0-1


[Site "https://www.chess.com"]

[Event "Titled Tuesday Blitz November 07 Early 2023"]
[White "Chemin, Justo Reinaldo"]
[Black "katharinareinecke"]
[WhiteFideId "2101580"]
[WhiteElo "2208"]
[BlackElo "1881"]
[Result "1/2-1/2"]
[Round "3"]
[TimeControl "180+1"]
[Date "2023.11.07"]
[WhiteClock "0:00:10"]
[BlackClock "0:00:30"]
[Board "244"]

1. d4 {[%clk 0:03:00]}  d5 {[%clk 0:02:59]} 2. c4 {[%clk 0:02:58]}  c6 {[%clk 0:02:57]} 3. cxd5 {[%clk 0:02:58]}  cxd5 {[%clk 0:02:57]} 4. Nc3 {[%clk 0:02:58]}  Nf6 {[%clk 0:02:54]} 5. Bf4 {[%clk 0:02:58]}  e6 {[%clk 0:02:53]} 6. e3 {[%clk 0:02:57]}  Bd6 {[%clk 0:02:51]} 7. Bg3 {[%clk 0:02:57]}  O-O {[%clk 0:02:50]} 8. Bd3 {[%clk 0:02:56]}  a6 {[%clk 0:02:49]} 9. Nf3 {[%clk 0:02:55]}  b5 {[%clk 0:02:47]} 10. Ne5 {[%clk 0:02:51]}  Bb7 {[%clk 0:02:38]} 11. f4 {[%clk 0:02:40]}  Nbd7 {[%clk 0:02:29]} 12. Bh4 {[%clk 0:02:40]}  Rc8 {[%clk 0:02:15]} 13. Qf3 {[%clk 0:02:34]}  b4 {[%clk 0:02:08]} 14. Ne2 {[%clk 0:02:28]}  b3 {[%clk 0:01:49]} 15. O-O {[%clk 0:01:59]}  bxa2 {[%clk 0:01:40]} 16. Rxa2 {[%clk 0:01:56]}  Qb6 {[%clk 0:01:28]} 17. Rfa1 {[%clk 0:01:46]}  Ne4 {[%clk 0:01:17]} 18. Bxe4 {[%clk 0:00:51]}  dxe4 {[%clk 0:01:07]} 19. Nxd7 {[%clk 0:00:36]}  exf3 {[%clk 0:01:06]} 20. Nxb6 {[%clk 0:00:36]}  fxe2 {[%clk 0:01:02]} 21. Nxc8 {[%clk 0:00:34]}  Rxc8 {[%clk 0:01:01]} 22. Kf2 {[%clk 0:00:26]}  Rc2 {[%clk 0:01:01]} 23. b3 {[%clk 0:00:20]}  Rc3 {[%clk 0:00:49]} 24. Kxe2 {[%clk 0:00:19]}  Rxb3 {[%clk 0:00:43]} 25. g4 {[%clk 0:00:15]}  Bb4 {[%clk 0:00:40]} 26. Be1 {[%clk 0:00:13]}  Bxe1 {[%clk 0:00:37]} 27. Rxe1 {[%clk 0:00:13]}  g6 {[%clk 0:00:36]} 28. Rc1 {[%clk 0:00:13]}  Kg7 {[%clk 0:00:35]} 29. Rc7 {[%clk 0:00:13]}  h5 {[%clk 0:00:34]} 30. gxh5 {[%clk 0:00:12]}  gxh5 {[%clk 0:00:34]} 31. Rxb7 {[%clk 0:00:11]}  Rxb7 {[%clk 0:00:34]} 32. Rxa6 {[%clk 0:00:11]}  Rb2+ {[%clk 0:00:34]} 33. Kf3 {[%clk 0:00:11]}  Rxh2 {[%clk 0:00:34]} 34. e4 {[%clk 0:00:08]}  h4 {[%clk 0:00:33]} 35. d5 {[%clk 0:00:06]}  exd5 {[%clk 0:00:32]} 36. exd5 {[%clk 0:00:06]}  Rd2 {[%clk 0:00:31]} 37. d6 {[%clk 0:00:06]}  h3 {[%clk 0:00:31]} 38. Kg3 {[%clk 0:00:06]}  h2 {[%clk 0:00:31]} 39. Ra1 {[%clk 0:00:06]}  Rxd6 {[%clk 0:00:31]} 40. Kxh2 {[%clk 0:00:05]}  Rh6+ {[%clk 0:00:30]} 41. Kg3 {[%clk 0:00:06]}  Rg6+ {[%clk 0:00:30]} 42. Kf3 {[%clk 0:00:06]}  Re6 {[%clk 0:00:30]} 43. Ra2 {[%clk 0:00:06]}  Rf6 {[%clk 0:00:29]} 44. Rg2+ {[%clk 0:00:07]}  Rg6 {[%clk 0:00:30]} 45. Rxg6+ {[%clk 0:00:07]}  Kxg6 {[%clk 0:00:30]} 46. Kg4 {[%clk 0:00:08]}  f6 {[%clk 0:00:29]} 47. Kg3 {[%clk 0:00:07]}  Kf5 {[%clk 0:00:29]} 48. Kf3 {[%clk 0:00:08]}  Ke6 {[%clk 0:00:29]} 49. Kg3 {[%clk 0:00:09]}  Kf5 {[%clk 0:00:29]} 50. Kf3 {[%clk 0:00:09]}  Ke6 {[%clk 0:00:29]} 51. Ke4 {[%clk 0:00:09]}  f5+ {[%clk 0:00:28]} 52. Kd4 {[%clk 0:00:09]}  Kd6 {[%clk 0:00:28]} 53. Kc4 {[%clk 0:00:09]}  Kc6 {[%clk 0:00:29]} 54. Kd4 {[%clk 0:00:09]}  Kd6 {[%clk 0:00:29]} 55. Kc4 {[%clk 0:00:10]}  Kc6 {[%clk 0:00:29]} 56. Kd4 {[%clk 0:00:10]}  Kd6 {[%clk 0:00:30]} 1/2-1/2


[Site "https://www.chess.com"]